bitfinex-derivatives/quotes_BTCF0:USTF0_20251011
["timestamp","ask_amount","ask_price","bid_price","bid_amount"]
[1760210083393,0.11522554,111540.0,111530.0,0.343779]
[1760210083798,0.11522554,111540.0,111530.0,0.25421]
[1760210084297,0.47602554,111540.0,111530.0,0.25421]
[1760210084596,0.47602554,111540.0,111530.0,0.3437791]
[1760210084998,0.47602554,111540.0,111530.0,0.25421]
[1760210085497,0.45146735,111540.0,111530.0,0.25421]
[1760210087792,0.36190635,111540.0,111530.0,0.3437792]
[1760210087998,0.00110635,111540.0,111530.0,0.3437792]
[1760210088997,0.09066755,111540.0,111530.0,0.25421]
[1760210089598,0.45146755,111540.0,111530.0,0.25421]
[1760210089994,1.02038957,111580.0,111560.0,0.03583]
[1760210090194,0.3608,111570.0,111560.0,0.25583]
[1760210090388,0.38533754,111570.0,111560.0,0.25583]
[1760210090589,0.02453754,111570.0,111560.0,1.1061752]
[1760210090793,0.3608,111590.0,111580.0,0.1030492]
[1760210091098,1.02036467,111610.0,111600.0,0.01352]
[1760210091394,0.74613568,111610.0,111600.0,0.23352]
[1760210091592,0.38533568,111610.0,111600.0,0.3453431]
[1760210091996,0.3608,111610.0,111600.0,0.3453431]
[1760210093200,0.3608,111610.0,111600.0,0.25583]
[1760210093494,0.3608,111610.0,111600.0,0.3453431]
[1760210094198,1.0901987,111620.0,111610.0,0.01352]
[1760210094398,1.0901987,111620.0,111610.0,0.22352]
[1760210096799,0.52014303,111620.0,111610.0,0.22352]
[1760210096996,1.0901987,111620.0,111610.0,0.22352]
[1760210097197,1.4901987,111620.0,111610.0,0.21]
[1760210097598,0.92014303,111620.0,111610.0,0.22352]
[1760210097794,1.4901987,111620.0,111610.0,0.22352]
[1760210099402,0.92014303,111620.0,111610.0,0.22352]
[1760210099602,1.4901987,111620.0,111610.0,0.22352]
[1760210102904,1.0901987,111620.0,111610.0,0.22352]
[1760210103300,0.450297,111620.0,111610.0,0.64583]
[1760210103500,0.4502932,111630.0,111620.0,0.03583]
[1760210103800,0.4502932,111630.0,111620.0,0.24583]
[1760210104003,0.9584221,111630.0,111620.0,0.22352]
[1760210104205,0.4502932,111630.0,111620.0,0.22352]
[1760210105507,0.52361924,111630.0,111620.0,0.22352]
[1760210105903,0.52361924,111630.0,111620.0,0.24583]
[1760210106206,0.43412604,111630.0,111620.0,0.335327]
[1760210106402,0.45857838,111630.0,111620.0,0.335327]
[1760210106608,0.02445234,111630.0,111620.0,0.735327]
[1760210106803,0.4502809,111640.0,111630.0,0.03583]
[1760210107002,0.4502809,111640.0,111630.0,0.25583]
[1760210107202,0.4502808,111640.0,111630.0,0.3453188]
[1760210107402,0.4502808,111640.0,111630.0,0.25583]
[1760210109005,0.4502808,111640.0,111630.0,0.3453188]
[1760210109206,0.4502808,111640.0,111630.0,0.25583]
[1760210109406,0.02445574,111640.0,111630.0,1.1061188]
[1760210109610,0.52170327,111660.0,111650.0,0.01352]
[1760210109611,0.4502649,111660.0,111650.0,0.01352]
[1760210109812,0.3608,111660.0,111650.0,0.3653028]
[1760210110010,0.3608,111660.0,111650.0,0.7653028]
[1760210110409,0.3608,111660.0,111650.0,0.24]
[1760210110410,0.9583937,111660.0,111650.0,0.24]
[1760210110613,1.3583937,111660.0,111650.0,0.24]
[1760210110814,1.74364449,111660.0,111650.0,0.24]
[1760210111012,1.23551559,111660.0,111650.0,0.25352]
[1760210111207,1.81597035,111660.0,111650.0,0.25352]
[1760210113412,0.90784145,111660.0,111650.0,0.27583]
[1760210113713,0.90784145,111660.0,111650.0,0.25352]
[1760210114913,1.41597035,111660.0,111650.0,0.25352]
[1760210116814,1.81597035,111660.0,111650.0,0.24]
[1760210117020,0.0894891,111630.0,111620.0,0.01352]
[1760210117216,0.958418,111630.0,111620.0,0.20352]
[1760210118119,0.4502891,111630.0,111620.0,0.20352]
[1760210118318,0.0894891,111630.0,111620.0,0.2248]
[1760210118516,0.4502891,111630.0,111620.0,0.2248]
[1760210119419,0.47465433,111630.0,111620.0,0.2248]
[1760210120119,0.11385433,111630.0,111620.0,0.2248]
[1760210121120,0.02436523,111630.0,111620.0,0.7142971]
[1760210121320,0.0894812,111640.0,111620.0,1.0750971]
[1760210121522,0.11387632,111640.0,111630.0,0.03471]
[1760210121722,0.02439512,111640.0,111630.0,0.28471]
[1760210122025,0.11387622,111640.0,111630.0,0.28471]
[1760210122220,0.47467622,111640.0,111630.0,0.26343]
[1760210123122,0.47467622,111640.0,111630.0,0.28471]
[1760210125221,0.98280512,111640.0,111630.0,0.26343]
[1760210129926,1.0148133,111640.0,111630.0,0.26343]
[1760210130834,0.0894971,111620.0,111610.0,0.18343]
[1760210131033,0.98282112,111620.0,111610.0,0.25343]
[1760210131234,0.98282112,111620.0,111610.0,0.24]
[1760210133131,1.74362112,111620.0,111610.0,0.24]
[1760210133327,1.7756293,111620.0,111610.0,0.24]
[1760210135132,1.84730811,111620.0,111610.0,0.24]
[1760210136835,0.02439512,111620.0,111610.0,0.67471]
[1760210137034,0.02439512,111620.0,111610.0,1.03551]
[1760210137328,0.98281952,111630.0,111610.0,1.03551]
[1760210137538,0.98281952,111630.0,111620.0,0.01343]
[1760210137738,0.98281952,111630.0,111620.0,0.27343]
[1760210138238,0.38519512,111630.0,111620.0,0.29471]
[1760210138732,0.02439512,111630.0,111620.0,0.29471]
[1760210138935,0.98302473,111640.0,111630.0,0.01343]
[1760210139240,0.98302473,111640.0,111630.0,0.23343]
[1760210140929,0.089489,111630.0,111620.0,0.01343]
[1760210141135,0.089505,111610.0,111600.0,0.2]
[1760210141339,0.0895131,111600.0,111590.0,0.01335]
[1760210141539,0.0895211,111590.0,111580.0,0.01335]
[1760210141742,0.98305813,111590.0,111580.0,0.23335]
[1760210142132,0.98305813,111590.0,111580.0,0.22]
[1760210143143,0.98305813,111590.0,111580.0,0.23392]
[1760210144345,0.95845,111590.0,111580.0,0.23392]
[1760210144642,0.98302261,111590.0,111580.0,0.23392]
[1760210144845,0.98302261,111590.0,111580.0,0.22]
[1760210145241,1.35845,111590.0,111580.0,0.22]
[1760210145437,1.38301505,111590.0,111580.0,0.22]
[1760210145743,1.38301505,111590.0,111560.0,0.24335]
[1760210145744,0.0895371,111570.0,111560.0,0.24335]
[1760210145938,0.0895371,111570.0,111560.0,0.22]
[1760210145939,0.958466,111570.0,111560.0,0.22]
[1760210146248,1.74382543,111570.0,111560.0,0.01392]
[1760210146441,1.74382543,111570.0,111560.0,0.13392]
[1760210147340,1.719266,111570.0,111560.0,0.13392]
[1760210147542,1.74378744,111570.0,111560.0,0.13392]
[1760210148741,0.0895452,111560.0,111550.0,0.01392]
[1760210149046,0.9584741,111560.0,111550.0,0.18392]
[1760210149447,1.03009835,111560.0,111550.0,0.18392]
[1760210151549,0.9584741,111560.0,111550.0,0.18392]
[1760210155648,0.4503452,111560.0,111550.0,0.60724]
[1760210156750,0.4503452,111560.0,111550.0,0.58392]
[1760210157641,0.4503452,111560.0,111550.0,0.60724]
[1760210157847,0.9584741,111560.0,111550.0,0.60724]
[1760210159750,0.4503452,111560.0,111550.0,0.60724]
[1760210160247,0.4503405,111570.0,111560.0,0.03724]
[1760210160450,0.9584694,111570.0,111560.0,0.28724]
[1760210160745,0.9584694,111570.0,111560.0,0.26392]
[1760210161143,1.38292983,111570.0,111560.0,0.26392]
[1760210163855,1.45406059,111570.0,111560.0,0.26392]
[1760210164149,1.45406059,111570.0,111550.0,0.01392]
[1760210164349,1.3584741,111560.0,111550.0,0.0204915]
[1760210164554,0.0895532,111550.0,111530.0,0.01392]
[1760210164855,0.0895773,111520.0,111510.0,0.01392]
[1760210165050,1.34376663,111520.0,111510.0,0.24392]
[1760210165446,0.95485909,111520.0,111510.0,0.26724]
[1760210165646,1.04448332,111520.0,111510.0,0.26724]
[1760210165850,1.04448332,111520.0,111510.0,0.24392]
[1760210166252,1.02003917,111520.0,111510.0,0.24392]
[1760210166461,1.42003917,111520.0,111510.0,0.24392]
[1760210166755,1.44447607,111520.0,111510.0,0.24392]
[1760210170453,0.0895853,111510.0,111500.0,0.01392]
[1760210170652,1.61401952,111510.0,111500.0,0.1805476]
[1760210170857,1.61401952,111510.0,111490.0,0.01392]
[1760210170858,0.0895934,111500.0,111490.0,0.01392]
[1760210171156,0.0895934,111500.0,111480.0,0.01392]
[1760210171157,0.0896014,111490.0,111480.0,0.01392]
[1760210171352,1.04443696,111490.0,111480.0,0.13392]
[1760210171558,1.44443696,111490.0,111480.0,0.13392]
[1760210171954,1.51748249,111490.0,111480.0,0.13392]
[1760210172757,1.51748249,111490.0,111480.0,0.13384]
[1760210175150,0.0896094,111480.0,111470.0,0.01402175]
[1760210175351,1.04454302,111480.0,111470.0,0.00010175]
[1760210175562,0.0896174,111470.0,111460.0,0.01392]
[1760210175756,0.0896255,111460.0,111450.0,0.01392]
[1760210175963,1.04446106,111460.0,111450.0,0.20392]
[1760210176262,1.61405972,111460.0,111450.0,0.20392]
[1760210177264,1.04446106,111460.0,111450.0,0.20492]
[1760210177663,1.61405972,111460.0,111450.0,0.20492]
[1760210178166,1.04446106,111460.0,111450.0,0.20492]
[1760210179156,1.02002416,111460.0,111450.0,0.20492]
[1760210179860,1.02001606,111470.0,111460.0,0.01384]
[1760210180060,1.02001606,111470.0,111460.0,0.27384]
[1760210181658,0.93039866,111470.0,111460.0,0.696]
[1760210181862,0.3608,111470.0,111460.0,0.7856255]
[1760210182162,0.36089806,111480.0,111470.0,0.1256174]
[1760210182163,9.806e-05,111480.0,111470.0,0.1256174]
[1760210182460,9.806e-05,111480.0,111470.0,0.6468]
[1760210182655,0.56969672,111480.0,111470.0,0.6468]
[1760210182855,0.93049672,111480.0,111470.0,0.286]
[1760210183567,0.36089806,111480.0,111470.0,0.286]
[1760210183766,0.93049672,111480.0,111470.0,0.286]
[1760210184256,1.02010612,111480.0,111470.0,0.286]
[1760210185161,1.02010612,111480.0,111470.0,0.26384]
[1760210185362,1.42010612,111480.0,111470.0,0.26384]
[1760210189970,0.0896174,111470.0,111460.0,0.01384]
[1760210190172,1.02001606,111470.0,111460.0,0.07384]
[1760210190376,1.44423179,111470.0,111460.0,0.01384]
[1760210190674,0.0896255,111460.0,111450.0,0.01392]
[1760210190867,1.02002416,111460.0,111450.0,0.23392]
[1760210191069,1.0442403,111460.0,111450.0,0.23392]
[1760210192871,1.0442403,111460.0,111450.0,0.23492]
[1760210195973,1.0452403,111460.0,111450.0,0.23392]
[1760210199278,1.04534928,111460.0,111450.0,0.23392]
[1760210200476,1.69496839,111460.0,111450.0,0.23392]
[1760210200674,0.0896415,111440.0,111430.0,0.01384]
[1760210200874,1.0442563,111440.0,111430.0,0.25384]
[1760210204382,1.1144733,111440.0,111430.0,0.25384]
[1760210204585,0.02421614,111440.0,111430.0,0.67609]
[1760210204884,1.04436067,111450.0,111440.0,0.03583]
[1760210205186,1.61395933,111450.0,111440.0,0.26358]
[1760210206179,2.01395933,111450.0,111440.0,0.26358]
[1760210206386,2.04583364,111450.0,111440.0,0.26358]
[1760210208986,2.08459306,111450.0,111440.0,0.26358]
[1760210212289,2.11646737,111450.0,111440.0,0.26358]
[1760210214590,1.14686871,111450.0,111440.0,0.26358]
[1760210214895,1.1149906,111450.0,111440.0,0.68583]
[1760210215286,1.1149906,111450.0,111440.0,0.26358]
[1760210216890,1.14686491,111450.0,111440.0,0.26358]
[1760210217191,1.1149906,111450.0,111440.0,0.26358]
[1760210217492,1.1149906,111450.0,111440.0,0.68583]
[1760210217688,1.1149906,111450.0,111440.0,1.34507026]
[1760210217689,0.02432471,111450.0,111440.0,1.34507026]
[1760210217882,0.59392337,111450.0,111440.0,0.64663]
[1760210218087,1.04435687,111450.0,111440.0,0.26358]
[1760210219291,0.38512471,111450.0,111440.0,0.68583]
[1760210219489,0.95472337,111450.0,111440.0,0.68583]
[1760210219694,0.02432471,111450.0,111440.0,0.7754716]
[1760210219896,1.04435697,111450.0,111440.0,0.26358]
[1760210221597,1.04435697,111450.0,111440.0,0.28583]
[1760210221896,1.04435697,111450.0,111440.0,0.26358]
[1760210223098,1.61395563,111450.0,111440.0,0.26358]
[1760210224093,1.61395563,111450.0,111430.0,0.01384]
[1760210224094,0.0896416,111440.0,111430.0,0.01384]
[1760210224398,1.04436497,111440.0,111430.0,0.01384]
[1760210224599,1.07623928,111440.0,111430.0,0.01384]
[1760210224994,1.07623928,111440.0,111430.0,0.09384]
[1760210225195,1.04436497,111440.0,111430.0,0.25384]
[1760210225800,1.04536497,111440.0,111430.0,0.25384]
[1760210226305,1.04436497,111440.0,111430.0,0.25384]
[1760210226495,1.04536497,111440.0,111430.0,0.25384]
[1760210227593,0.98596125,111440.0,111430.0,0.25384]
[1760210232107,0.0896496,111430.0,111420.0,0.0449]
[1760210232405,0.98496925,111430.0,111420.0,0.1199]
[1760210232607,0.0896657,111410.0,111400.0,0.01369503]
[1760210232804,1.32154706,111410.0,111400.0,0.23369503]
[1760210236499,1.32154706,111410.0,111400.0,0.25515503]
[1760210239515,1.32154706,111410.0,111400.0,0.23369503]
[1760210239815,0.0896737,111400.0,111390.0,0.01375]
[1760210240015,0.96066864,111400.0,111390.0,0.25375]
[1760210240817,0.96066864,111400.0,111390.0,0.24]
[1760210240818,1.36066864,111400.0,111390.0,0.24]
[1760210241006,0.0896818,111390.0,111380.0,0.01375]
[1760210241211,0.96067674,111390.0,111380.0,0.16375]
[1760210241406,1.36067674,111390.0,111380.0,0.1105872]
[1760210241716,0.0896899,111380.0,111370.0,0.01375]
[1760210242015,0.089698,111370.0,111360.0,0.01375]
[1760210242218,0.9659279,111370.0,111360.0,0.15375]
[1760210242614,1.3659279,111370.0,111360.0,0.14]
[1760210242813,1.43659803,111370.0,111360.0,0.14]
[1760210243115,1.43136307,111370.0,111360.0,0.15375]
[1760210243513,0.0897061,111360.0,111350.0,0.02365]
[1760210243714,0.96070104,111360.0,111350.0,0.25365]
[1760210245111,0.87099494,111360.0,111350.0,0.27511]
[1760210245319,0.87199494,111360.0,111350.0,0.27511]
[1760210246518,0.9618126,111360.0,111350.0,0.25365]
[1760210246915,0.45161766,111360.0,111350.0,0.25365]
[1760210247116,0.9618126,111360.0,111350.0,0.2399]
[1760210247419,0.0897222,111340.0,111330.0,0.31383728]
[1760210247615,0.59991714,111340.0,111330.0,0.15383728]
[1760210247918,1.32151714,111340.0,111330.0,0.15383728]
[1760210250323,0.7216,111340.0,111330.0,0.57529728]
[1760210250622,0.3608,111340.0,111330.0,0.57529728]
[1760210250819,0.3608,111350.0,111340.0,0.01375]
[1760210251122,0.3608,111350.0,111340.0,0.24521]
[1760210251921,0.3618,111350.0,111340.0,0.24521]
[1760210252621,0.96170884,111350.0,111340.0,0.22375]
[1760210252821,0.4515139,111350.0,111340.0,0.22375]
[1760210253023,0.96170884,111350.0,111340.0,0.22375]
[1760210253819,0.96170884,111350.0,111340.0,0.24521]
[1760210254919,0.87199494,111350.0,111340.0,0.64521]
[1760210255812,0.001,111350.0,111340.0,0.64521]
[1760210256324,0.001,111350.0,111340.0,1.0957322]
[1760210256624,0.00011156,111360.0,111340.0,1.0957322]
[1760210256818,0.00011156,111360.0,111350.0,0.4857241]
[1760210257017,0.00011156,111360.0,111350.0,1.1057241]
[1760210257422,0.3608,111380.0,111370.0,0.124908]
[1760210257623,0.3608,111390.0,111380.0,0.03521]
[1760210257822,0.4504819,111390.0,111380.0,0.28521]
[1760210258020,0.0896819,111390.0,111380.0,0.28521]
[1760210258323,0.08974797,111390.0,111380.0,0.28521]
[1760210258823,6.607e-05,111390.0,111380.0,0.68521]
[1760210259019,0.00106607,111390.0,111380.0,0.7749]
[1760210259620,0.00106607,111390.0,111380.0,1.1357]
[1760210260823,0.00106607,111390.0,111380.0,0.28521]
[1760210260824,0.60094291,111390.0,111380.0,0.28521]
[1760210261223,0.09074797,111390.0,111380.0,0.28521]
[1760210261418,0.96174291,111390.0,111380.0,0.28521]
[1760210261814,0.45154797,111390.0,111380.0,0.28421]
[1760210262125,0.09074797,111390.0,111380.0,0.28421]
[1760210262418,0.85154797,111390.0,111380.0,0.25]
[1760210262615,0.08969,111380.0,111370.0,0.00525546]
[1760210262820,0.089698,111370.0,111360.0,0.01375]
[1760210263020,0.0897061,111360.0,111350.0,0.01375]
[1760210263221,1.32150104,111360.0,111350.0,0.25375]
[1760210263421,1.72150104,111360.0,111350.0,0.25375]
[1760210263618,0.0897141,111350.0,111340.0,0.01321]
[1760210263823,0.96070904,111350.0,111340.0,0.18321]
[1760210264725,0.4505141,111350.0,111340.0,0.18321]
[1760210264924,0.96070904,111350.0,111340.0,0.18321]
[1760210265126,0.98499149,111350.0,111340.0,0.18321]
[1760210265325,0.96070904,111350.0,111340.0,0.18321]
[1760210266124,0.98499478,111350.0,111340.0,0.18321]
[1760210270733,0.96070904,111350.0,111340.0,0.18321]
[1760210270933,0.4505141,111350.0,111340.0,0.18321]
[1760210271132,0.98501266,111350.0,111340.0,0.18321]
[1760210275835,0.38510362,111350.0,111340.0,0.60644]
[1760210276129,0.47481772,111350.0,111340.0,0.60644]
[1760210276327,0.4505141,111350.0,111340.0,0.60644]
[1760210277032,0.98500761,111350.0,111340.0,0.60644]
[1760210277529,0.47522804,111350.0,111340.0,0.60644]
[1760210277736,0.98542298,111350.0,111340.0,0.60644]
[1760210278035,0.38551394,111350.0,111340.0,0.60644]
[1760210278541,0.4505141,111350.0,111340.0,0.60644]
[1760210279937,0.4505141,111350.0,111340.0,0.6961622]
[1760210279938,0.3608,111350.0,111340.0,0.6961622]
[1760210280131,0.4505071,111360.0,111350.0,0.01321]
[1760210280337,0.4505071,111360.0,111350.0,0.26644]
[1760210280642,0.96070204,111360.0,111350.0,0.26644]
[1760210281342,0.96170204,111360.0,111350.0,0.26644]
[1760210282340,0.4515071,111360.0,111350.0,0.26644]
[1760210282541,0.96170204,111360.0,111350.0,0.26644]
[1760210286243,0.4515071,111360.0,111350.0,0.26644]
[1760210286840,0.4505071,111360.0,111350.0,0.26644]
[1760210287243,0.36086441,111370.0,111360.0,0.03644]
[1760210287442,0.08976241,111370.0,111360.0,0.26644]
[1760210288140,6.441e-05,111370.0,111360.0,0.3561461]
[1760210288340,6.441e-05,111370.0,111360.0,1.1169461]
[1760210288747,0.3608,111390.0,111380.0,0.03644]
[1760210289045,0.3608,111400.0,111390.0,0.03644]
[1760210289247,0.4504707,111410.0,111400.0,0.03644]
[1760210289443,0.4504707,111410.0,111400.0,0.26644]
[1760210289639,0.3608,111410.0,111400.0,0.66644]
[1760210289848,0.45053204,111410.0,111400.0,0.66644]
[1760210290640,1.02117215,111410.0,111400.0,0.26644]
[1760210290843,1.02117215,111410.0,111400.0,0.24321]
[1760210291746,1.02117215,111410.0,111400.0,0.26644]
[1760210292152,0.66037215,111410.0,111400.0,0.26644]
[1760210292446,1.02117215,111410.0,111400.0,0.26644]
[1760210292647,0.45053204,111410.0,111400.0,0.26644]
[1760210293039,1.02117215,111410.0,111400.0,0.26644]
[1760210293442,0.45053204,111410.0,111400.0,0.26644]
[1760210293643,1.02117215,111410.0,111400.0,0.26644]
[1760210293847,6.624e-05,111410.0,111400.0,0.26644]
[1760210294049,6.624e-05,111410.0,111400.0,0.3561139]
[1760210294249,6.624e-05,111410.0,111400.0,0.66644]
[1760210295248,0.45053204,111410.0,111400.0,0.66644]
[1760210296644,0.36086624,111410.0,111400.0,0.66644]
[1760210297246,0.45053204,111410.0,111400.0,0.66644]
[1760210298951,0.45053204,111410.0,111400.0,0.24321]
[1760210298952,1.02117215,111410.0,111400.0,0.24321]
[1760210300152,1.02117215,111410.0,111400.0,0.26613]
[1760210301554,1.02117215,111410.0,111400.0,0.24321]
[1760210303053,1.02217215,111410.0,111400.0,0.24321]
[1760210304453,1.02217215,111410.0,111400.0,0.26613]
[1760210307056,1.02217215,111410.0,111400.0,0.24321]
[1760210308157,0.45153204,111410.0,111400.0,0.26613]
[1760210308346,1.02217215,111410.0,111400.0,0.26613]
[1760210309151,0.00106624,111410.0,111400.0,0.7558038]
[1760210309356,0.00106624,111410.0,111400.0,0.66613]
[1760210309856,0.45153204,111410.0,111400.0,0.26613]
[1760210310158,1.02217215,111410.0,111400.0,0.26613]
[1760210310457,0.45153204,111410.0,111400.0,0.26613]
[1760210312259,1.02217215,111410.0,111400.0,0.26613]
[1760210312456,1.02217215,111410.0,111400.0,0.24321]
[1760210315950,0.45153204,111410.0,111400.0,0.26613]
[1760210316157,0.93250635,111410.0,111400.0,0.26613]
[1760210316358,0.95703676,111410.0,111400.0,0.26613]
[1760210317164,0.38639665,111410.0,111400.0,0.26613]
[1760210317368,0.95703676,111410.0,111400.0,0.26613]
[1760210319769,1.04670246,111410.0,111400.0,0.26613]
[1760210319969,0.95703676,111410.0,111400.0,0.26613]
[1760210320264,0.38639665,111410.0,111400.0,0.3558039]
[1760210320570,0.02559665,111410.0,111400.0,0.7558039]
[1760210321768,0.02559665,111410.0,111400.0,0.66613]
[1760210321967,0.38639665,111410.0,111400.0,0.66613]
[1760210322168,0.95703676,111410.0,111400.0,0.66613]
[1760210322373,0.95703676,111410.0,111400.0,0.26613]
[1760210322966,1.04670246,111410.0,111400.0,0.24321]
[1760210325167,1.04670246,111410.0,111400.0,0.26591]
[1760210325376,0.95703676,111410.0,111400.0,0.24321]
[1760210325675,1.44670256,111410.0,111400.0,0.24321]
[1760210325874,2.01734267,111410.0,111400.0,0.24321]
[1760210326075,1.47857687,111410.0,111400.0,0.24321]
[1760210326274,1.44670256,111410.0,111400.0,0.24321]
[1760210327981,1.47857687,111410.0,111400.0,0.24321]
[1760210328275,0.0896737,111400.0,111390.0,0.01321]
[1760210328572,1.61628433,111400.0,111390.0,0.25321]
[1760210328777,2.01628433,111400.0,111390.0,0.25321]
[1760210329679,2.04815864,111400.0,111390.0,0.25321]
[1760210331375,2.01628433,111400.0,111390.0,0.25321]
[1760210332272,0.0896899,111380.0,111370.0,0.38321]
[1760210332583,0.0896899,111380.0,111350.0,0.21329]
[1760210332584,0.089706,111360.0,111350.0,0.21329]
[1760210332770,0.68485757,111360.0,111350.0,0.27329]
[1760210332975,1.40645757,111360.0,111350.0,0.27329]
[1760210333882,1.4096104,111360.0,111350.0,0.27329]
[1760210334279,2.38025051,111360.0,111350.0,0.27329]
[1760210334480,2.38025051,111360.0,111350.0,0.26]
[1760210334678,1.8096104,111360.0,111350.0,0.26]
[1760210334877,1.88090397,111360.0,111350.0,0.26]
[1760210335279,2.45154408,111360.0,111350.0,0.26]
[1760210335978,0.089714,111350.0,111340.0,0.01329]
[1760210336283,1.59189552,111350.0,111340.0,0.24329]
[1760210336983,1.02125541,111350.0,111340.0,0.24329]
[1760210338380,0.3609013,111350.0,111340.0,0.66599]
[1760210341087,0.0001013,111350.0,111340.0,1.32635221]
[1760210341285,0.3608,111370.0,111360.0,0.03599]
[1760210341585,0.3608,111370.0,111360.0,0.25599]
[1760210342390,1.02113801,111370.0,111360.0,0.23329]
[1760210342687,1.02113801,111370.0,111360.0,0.25599]
[1760210342883,1.02113801,111370.0,111360.0,0.65599]
[1760210342884,0.3608,111370.0,111360.0,0.65599]
[1760210343281,0.3608,111380.0,111370.0,0.03599]
[1760210343486,0.3608,111380.0,111370.0,0.69599]
[1760210343687,0.3608,111390.0,111380.0,0.03599]
[1760210343889,0.62776,111400.0,111390.0,0.03599]
[1760210344089,0.62776,111400.0,111390.0,0.28599]
[1760210344587,0.7174338,111400.0,111390.0,0.28599]
[1760210344793,0.62776,111400.0,111390.0,0.28599]
[1760210344989,0.62776,111400.0,111390.0,0.68599]
[1760210345397,0.3608,111410.0,111400.0,0.03599]
[1760210345597,0.3608,111410.0,111400.0,0.27599]
[1760210345793,0.3608,111420.0,111410.0,0.03599]
[1760210346090,0.3608,111420.0,111410.0,0.30599]
[1760210346299,0.3608,111430.0,111420.0,0.03599]
[1760210346593,0.3608,111430.0,111420.0,0.70599]
[1760210346788,0.3608,111440.0,111430.0,0.03599]
[1760210346992,0.3608,111440.0,111430.0,0.27599]
[1760210348692,1.02107371,111450.0,111430.0,0.27599]
[1760210348897,0.3608,111450.0,111440.0,0.03599]
[1760210349098,1.02107371,111450.0,111440.0,0.26599]
[1760210349697,1.02107371,111450.0,111440.0,0.24329]
[1760210349698,1.42107371,111450.0,111440.0,0.24329]
[1760210350689,1.02107371,111450.0,111440.0,0.26599]
[1760210351097,1.02207371,111450.0,111440.0,0.26599]
[1760210351299,0.93244011,111450.0,111440.0,0.24329]
[1760210351495,0.96139896,111450.0,111440.0,0.24329]
[1760210352297,0.3618,111450.0,111440.0,0.24329]
[1760210352500,0.3618,111450.0,111440.0,0.3541116]
[1760210352802,0.3618,111450.0,111440.0,0.26447]
[1760210353001,0.3618,111450.0,111440.0,0.7541116]
[1760210353200,0.3618,111450.0,111440.0,0.66447]
[1760210353401,0.001,111450.0,111440.0,0.7541116]
[1760210353798,0.001,111450.0,111440.0,1.1149116]
[1760210354199,0.63105823,111470.0,111460.0,0.01384]
[1760210354394,0.6278,111470.0,111460.0,0.25502]
[1760210355401,0.6288,111470.0,111460.0,0.25502]
[1760210357704,0.7184175,111470.0,111460.0,0.25502]
[1760210359211,0.6288,111470.0,111460.0,0.25502]
[1760210359900,0.6288,111470.0,111460.0,0.3446456]
[1760210360508,0.268,111470.0,111460.0,0.3446456]
[1760210360805,0.268,111470.0,111460.0,0.7446456]
[1760210360806,0.001,111470.0,111460.0,0.7446456]
[1760210361008,0.001,111470.0,111460.0,1.1054456]
[1760210361608,0.001,111470.0,111460.0,1.10773612]
[1760210362010,0.001,111470.0,111460.0,1.1054456]
[1760210362513,0.001,111470.0,111460.0,1.01582]
[1760210362714,0.96138286,111470.0,111460.0,0.23384]
[1760210363308,0.3618,111470.0,111460.0,0.25502]
[1760210365717,0.3618,111470.0,111460.0,0.3446455]
[1760210366012,0.001,111470.0,111460.0,0.3446455]
[1760210366214,0.001,111470.0,111460.0,0.7446455]
[1760210366512,0.001,111470.0,111460.0,1.1054455]
[1760210366911,0.3608,111490.0,111470.0,0.0896128]
[1760210367113,0.4504015,111490.0,111480.0,0.03502]
[1760210367314,0.4504015,111490.0,111480.0,0.27502]
[1760210367912,0.4504015,111490.0,111480.0,0.25384]
[1760210367913,0.8504015,111490.0,111480.0,0.25384]
[1760210368414,0.8514015,111490.0,111480.0,0.25384]
[1760210368712,0.0896175,111470.0,111450.0,0.01384]
[1760210368906,0.96039096,111460.0,111450.0,0.27384]
[1760210369107,0.87076536,111460.0,111450.0,0.27384]
[1760210369316,1.36039096,111460.0,111450.0,0.26]
[1760210369817,0.0896336,111450.0,111440.0,0.01384]
[1760210370019,0.4504336,111450.0,111440.0,0.23384]
[1760210370213,0.8504336,111450.0,111440.0,0.23384]
[1760210370616,0.8746661,111450.0,111440.0,0.23384]
[1760210371513,0.94572999,111450.0,111440.0,0.23384]
[1760210372414,0.94572999,111450.0,111440.0,0.22]
[1760210372716,0.94572999,111450.0,111420.0,0.34384]
[1760210372717,0.0896497,111430.0,111420.0,0.01384]
[1760210372910,1.34544756,111430.0,111420.0,0.24]
[1760210373420,0.0896578,111420.0,111380.0,0.01384]
[1760210373718,1.32124726,111390.0,111380.0,0.12384]
[1760210373916,1.32124726,111390.0,111380.0,0.11]
[1760210373917,1.34553141,111390.0,111380.0,0.11]
[1760210374111,1.34553141,111390.0,111380.0,0.12384]
[1760210374709,1.345635,111390.0,111380.0,0.12384]
[1760210375519,1.81822236,111390.0,111380.0,0.11]
[1760210375821,1.81822236,111390.0,111380.0,0.12384]
[1760210376210,1.79393821,111390.0,111380.0,0.11]
[1760210376410,1.79393821,111390.0,111360.0,0.01384]
[1760210376411,0.089698,111370.0,111360.0,0.01384]
[1760210376620,1.32126336,111370.0,111360.0,0.25384]
[1760210377321,1.23156536,111370.0,111360.0,0.25384]
[1760210377620,1.23156536,111370.0,111360.0,0.27502]
[1760210378013,1.23156536,111370.0,111360.0,0.27602]
[1760210378715,0.3608,111380.0,111370.0,0.124718]
[1760210379014,0.36090359,111390.0,111380.0,0.03502]
[1760210379218,0.36090359,111390.0,111380.0,0.25502]
[1760210379412,0.36090359,111390.0,111380.0,0.65502]
[1760210380520,0.87086895,111390.0,111380.0,0.23384]
[1760210381813,0.96055085,111390.0,111380.0,0.23384]
[1760210382616,0.87086895,111390.0,111380.0,0.23384]
[1760210383020,0.87086895,111390.0,111380.0,0.25574]
[1760210383520,0.96055085,111390.0,111380.0,0.23384]
[1760210385722,1.36055085,111390.0,111380.0,0.23384]
[1760210387623,0.36090359,111390.0,111380.0,0.2556]
[1760210387819,0.36090359,111390.0,111380.0,0.6556]
[1760210388024,0.00010359,111390.0,111380.0,0.74529]
[1760210390621,0.089698,111370.0,111360.0,0.325]
[1760210390824,1.34552311,111370.0,111350.0,0.0131]